[Event "Venerd-dì-rapid!"]
[Site "Chess.com"]
[Date "2020.04.17"]
[Round "1"]
[White "FrancescoZasa"]
[Black "markk000"]
[Result "0-1"]
[WhiteElo "976"]
[BlackElo "1568"]
[TimeControl "720+3"]
[EndTime "6:07:21 PDT"]
[Termination "markk000 ha vinto per scaccomatto"]

1. d4 {[%clk 0:12:00.2]} 1... Nf6 {[%clk 0:11:58.3]} 2. Nf3 {[%clk 0:11:58.5]}
2... c5 {[%clk 0:11:56.1]} 3. Nc3 {[%clk 0:11:53.2]} 3... d5 {[%clk 0:11:44.7]}
4. e3 {[%clk 0:11:45.5]} 4... Bg4 {[%clk 0:11:44.7]} 5. h3 {[%clk 0:11:44.3]}
5... Bh5 {[%clk 0:11:45.3]} 6. g4 {[%clk 0:11:42.5]} 6... Bg6 {[%clk 0:11:46.9]}
7. dxc5 {[%clk 0:11:38.3]} 7... e6 {[%clk 0:11:48.4]} 8. Bb5+ {[%clk 0:11:14]}
8... Nc6 {[%clk 0:11:49.9]} 9. b4 {[%clk 0:10:57.4]} 9... a5 {[%clk 0:11:47.4]}
10. bxa5 {[%clk 0:10:53.2]} 10... Qxa5 {[%clk 0:11:50.3]} 11. Nh4 {[%clk
0:10:12.1]} 11... Bxc5 {[%clk 0:11:40.3]} 12. Bxc6+ {[%clk 0:09:52.9]} 12...
bxc6 {[%clk 0:11:36.8]} 13. f4 {[%clk 0:09:47.6]} 13... Bb4 {[%clk 0:11:24.4]}
14. Bd2 {[%clk 0:09:14.3]} 14... Bxc3 {[%clk 0:11:24.4]} 15. Bxc3 {[%clk
0:09:11.2]} 15... Qxc3+ {[%clk 0:11:27.3]} 16. Qd2 {[%clk 0:08:56.9]} 16...
Qxa1+ {[%clk 0:11:28.5]} 17. Qd1 {[%clk 0:08:54.8]} 17... Qxd1+ {[%clk
0:11:29.9]} 18. Kxd1 {[%clk 0:08:55.3]} 18... Rxa2 {[%clk 0:11:27.9]} 19. g5
{[%clk 0:08:51.6]} 19... Ne4 {[%clk 0:11:24.9]} 20. Nxg6 {[%clk 0:08:46.7]}
20... hxg6 {[%clk 0:11:24.3]} 21. Ke2 {[%clk 0:08:32.4]} 21... Ng3+ {[%clk
0:11:24]} 22. Kf2 {[%clk 0:08:21.3]} 22... Nxh1+ {[%clk 0:11:26.9]} 23. Kg2
{[%clk 0:08:22.3]} 23... Rxc2+ {[%clk 0:11:27.8]} 24. Kxh1 {[%clk 0:08:21.6]}
24... Rxh3+ {[%clk 0:11:30.3]} 25. Kg1 {[%clk 0:08:20.9]} 25... Rxe3 {[%clk
0:11:33.2]} 26. Kf1 {[%clk 0:08:20.6]} 26... Ra3 {[%clk 0:11:36.1]} 27. Ke1
{[%clk 0:08:21.4]} 27... Ra1# {[%clk 0:11:39]} 0-1

[Event "Venerd-dì-rapid!"]
[Site "Chess.com"]
[Date "2020.04.17"]
[Round "1"]
[White "BAKR1980"]
[Black "fausto2p"]
[Result "1-0"]
[WhiteElo "1569"]
[BlackElo "969"]
[TimeControl "720+3"]
[EndTime "6:08:00 PDT"]
[Termination "BAKR1980 ha vinto per abbandono"]

1. e4 {[%clk 0:12:01.8]} 1... e6 {[%clk 0:12:00.3]} 2. d4 {[%clk 0:12:03.2]}
2... d5 {[%clk 0:12:00.6]} 3. exd5 {[%clk 0:12:00]} 3... exd5 {[%clk 0:12:01.1]}
4. Nf3 {[%clk 0:12:01.5]} 4... Nf6 {[%clk 0:12:01.6]} 5. Bd3 {[%clk 0:12:01.8]}
5... Bd6 {[%clk 0:11:52.5]} 6. O-O {[%clk 0:12:01.3]} 6... O-O {[%clk
0:11:50.4]} 7. h3 {[%clk 0:12:02.5]} 7... h6 {[%clk 0:11:49.7]} 8. Be3 {[%clk
0:12:02.7]} 8... Be6 {[%clk 0:11:38.1]} 9. Qd2 {[%clk 0:12:03.2]} 9... Nbd7
{[%clk 0:11:24.9]} 10. Nc3 {[%clk 0:11:32.4]} 10... a6 {[%clk 0:11:20.1]} 11.
Rfe1 {[%clk 0:11:23.9]} 11... Re8 {[%clk 0:11:15.9]} 12. Bxh6 {[%clk 0:11:22.9]}
12... gxh6 {[%clk 0:11:15.2]} 13. Qxh6 {[%clk 0:11:23.9]} 13... Nf8 {[%clk
0:10:52.1]} 14. Ng5 {[%clk 0:10:51.8]} 14... Bf4 {[%clk 0:10:07.7]} 15. g3
{[%clk 0:10:08.9]} 15... Bxg5 {[%clk 0:10:07.7]} 16. Qxg5+ {[%clk 0:10:10.1]}
16... Kh8 {[%clk 0:09:37.5]} 17. Re5 {[%clk 0:10:05.2]} 17... Qd7 {[%clk
0:09:16.2]} 18. Qxf6+ {[%clk 0:10:04.4]} 18... Kg8 {[%clk 0:09:06.9]} 19. Rg5+
{[%clk 0:10:05.4]} 19... Ng6 {[%clk 0:09:05.4]} 20. Bxg6 {[%clk 0:10:03.8]}
20... fxg6 {[%clk 0:09:06.6]} 21. Rxg6+ {[%clk 0:10:04.1]} 1-0

[Event "Venerd-dì-rapid!"]
[Site "Chess.com"]
[Date "2020.04.17"]
[Round "1"]
[White "Ollarov"]
[Black "sirmale49"]
[Result "1-0"]
[WhiteElo "1950"]
[BlackElo "1354"]
[TimeControl "720+3"]
[EndTime "6:12:54 PDT"]
[Termination "Ollarov ha vinto per abbandono"]

1. e4 {[%clk 0:11:40]} 1... d5 {[%clk 0:11:59.3]} 2. exd5 {[%clk 0:11:40.1]}
2... Qxd5 {[%clk 0:12:01]} 3. Nc3 {[%clk 0:11:39.8]} 3... Qd6 {[%clk 0:12:02.6]}
4. d4 {[%clk 0:11:41.8]} 4... c6 {[%clk 0:12:04.3]} 5. Nf3 {[%clk 0:11:44.3]}
5... Bg4 {[%clk 0:12:05.9]} 6. Be2 {[%clk 0:11:45.5]} 6... Nf6 {[%clk
0:12:07.5]} 7. Be3 {[%clk 0:11:46.8]} 7... e6 {[%clk 0:12:09]} 8. O-O {[%clk
0:11:26.9]} 8... Be7 {[%clk 0:12:08.9]} 9. h3 {[%clk 0:11:24.6]} 9... Bf5 {[%clk
0:12:08.8]} 10. Nh4 {[%clk 0:11:21.3]} 10... Bg6 {[%clk 0:12:05.4]} 11. Bf3
{[%clk 0:10:58]} 11... Bd8 {[%clk 0:11:45.9]} 12. Qe2 {[%clk 0:10:56.9]} 12...
Bc7 {[%clk 0:11:38.1]} 13. g3 {[%clk 0:10:49.7]} 13... Nbd7 {[%clk 0:11:00.3]}
14. Bf4 {[%clk 0:09:39]} 14... e5 {[%clk 0:10:34.7]} 15. dxe5 {[%clk 0:09:34]}
15... Nxe5 {[%clk 0:10:32.3]} 16. Rfe1 {[%clk 0:09:33.2]} 16... Nd7 {[%clk
0:10:16.5]} 17. Bg4 {[%clk 0:09:23.4]} 17... O-O-O {[%clk 0:10:13.8]} 18. Bxe5
{[%clk 0:09:20.3]} 18... Rhe8 {[%clk 0:09:12.4]} 19. Bxd6 {[%clk 0:09:05.1]}
19... Rxe2 {[%clk 0:09:11.9]} 20. Rxe2 {[%clk 0:09:05.3]} 20... Bxd6 {[%clk
0:09:01.8]} 21. Rd1 {[%clk 0:09:05.9]} 21... Kc7 {[%clk 0:08:54.1]} 22. Nxg6
{[%clk 0:09:04.1]} 22... hxg6 {[%clk 0:08:53.3]} 23. Ne4 {[%clk 0:09:06.2]}
23... f5 {[%clk 0:08:52.9]} 24. Nxd6 {[%clk 0:09:07.9]} 24... fxg4 {[%clk
0:08:48.5]} 25. hxg4 {[%clk 0:09:07.7]} 25... Nc5 {[%clk 0:08:40.3]} 26. Re7+
{[%clk 0:09:05]} 26... Kb6 {[%clk 0:08:27.3]} 27. b4 {[%clk 0:09:00.1]} 27...
Nd7 {[%clk 0:06:35.2]} 28. Nc4+ {[%clk 0:08:56]} 28... Kc7 {[%clk 0:06:29.3]}
29. Ne5 {[%clk 0:08:54.7]} 29... Kc8 {[%clk 0:06:04.9]} 1-0

[Event "Venerd-dì-rapid!"]
[Site "Chess.com"]
[Date "2020.04.17"]
[Round "1"]
[White "sergiodone"]
[Black "donaldnecesito"]
[Result "1/2-1/2"]
[WhiteElo "1297"]
[BlackElo "1694"]
[TimeControl "720+3"]
[EndTime "6:13:30 PDT"]
[Termination "Partita patta per ripetizione di mosse"]

1. e4 {[%clk 0:11:56.7]} 1... c5 {[%clk 0:12:01.3]} 2. Nf3 {[%clk 0:11:47.4]}
2... d6 {[%clk 0:11:55.5]} 3. Bc4 {[%clk 0:11:48.2]} 3... Nf6 {[%clk 0:11:50.6]}
4. Qe2 {[%clk 0:11:47.8]} 4... e6 {[%clk 0:11:47.8]} 5. c3 {[%clk 0:11:47.9]}
5... Be7 {[%clk 0:11:42.8]} 6. d4 {[%clk 0:11:49.5]} 6... cxd4 {[%clk
0:11:44.2]} 7. cxd4 {[%clk 0:11:50.8]} 7... O-O {[%clk 0:11:42.3]} 8. Nc3 {[%clk
0:11:52.5]} 8... Qc7 {[%clk 0:11:39.8]} 9. O-O {[%clk 0:11:42.8]} 9... a6 {[%clk
0:11:40.9]} 10. a3 {[%clk 0:11:41.4]} 10... b5 {[%clk 0:11:42]} 11. Bd3 {[%clk
0:11:42.9]} 11... Bb7 {[%clk 0:11:35]} 12. Be3 {[%clk 0:11:38.8]} 12... Nbd7
{[%clk 0:11:34.7]} 13. h3 {[%clk 0:11:37.7]} 13... e5 {[%clk 0:11:26.7]} 14. d5
{[%clk 0:11:38.5]} 14... Nc5 {[%clk 0:11:22.9]} 15. Bc2 {[%clk 0:11:35.4]} 15...
Rac8 {[%clk 0:11:19.1]} 16. Rac1 {[%clk 0:11:36.1]} 16... Qd7 {[%clk 0:10:55]}
17. Rfe1 {[%clk 0:11:26.5]} 17... Rc7 {[%clk 0:10:06.5]} 18. Nh2 {[%clk
0:11:26.9]} 18... Rfc8 {[%clk 0:10:04.5]} 19. f4 {[%clk 0:11:14.2]} 19... exf4
{[%clk 0:09:58.8]} 20. Bxf4 {[%clk 0:11:15.1]} 20... Qe8 {[%clk 0:09:07]} 21.
Bg3 {[%clk 0:11:09.1]} 21... Ncd7 {[%clk 0:09:07.6]} 22. Ng4 {[%clk 0:11:04.5]}
22... Nxg4 {[%clk 0:09:06.1]} 23. Qxg4 {[%clk 0:11:03.2]} 23... Ne5 {[%clk
0:09:06]} 24. Bxe5 {[%clk 0:11:01.4]} 24... dxe5 {[%clk 0:09:07.8]} 25. Bb3
{[%clk 0:10:43.5]} 25... Bd6 {[%clk 0:08:37.6]} 26. Qf3 {[%clk 0:10:33.6]} 26...
a5 {[%clk 0:08:33.3]} 27. Ne2 {[%clk 0:10:04.5]} 27... Rxc1 {[%clk 0:08:33.9]}
28. Rxc1 {[%clk 0:10:05.3]} 28... Rxc1+ {[%clk 0:08:34.7]} 29. Nxc1 {[%clk
0:10:06.3]} 29... b4 {[%clk 0:08:05.6]} 30. a4 {[%clk 0:09:53.5]} 30... Ba6
{[%clk 0:08:03.2]} 31. Qd1 {[%clk 0:09:46.8]} 31... Qc8 {[%clk 0:07:52.2]} 32.
Qc2 {[%clk 0:09:33.4]} 32... Qxc2 {[%clk 0:06:25.4]} 33. Bxc2 {[%clk 0:09:33.6]}
33... Bc5+ {[%clk 0:06:23.5]} 34. Kh2 {[%clk 0:09:29.8]} 34... Bd4 {[%clk
0:06:21.2]} 35. b3 {[%clk 0:09:31.3]} 35... Kf8 {[%clk 0:06:18.2]} 36. Nd3
{[%clk 0:09:32.8]} 36... Bxd3 {[%clk 0:06:18.6]} 37. Bxd3 {[%clk 0:09:33.2]}
37... Ke7 {[%clk 0:06:11.7]} 38. g4 {[%clk 0:09:34.7]} 38... g5 {[%clk
0:06:11.9]} 39. Kg2 {[%clk 0:09:36.2]} 39... Kd6 {[%clk 0:06:08.2]} 40. Kf3
{[%clk 0:09:37.9]} 40... f6 {[%clk 0:06:09.6]} 41. Ke2 {[%clk 0:09:36.1]} 41...
h6 {[%clk 0:06:10.8]} 42. Bc4 {[%clk 0:09:37.6]} 42... Bc3 {[%clk 0:06:12.2]}
43. Kd3 {[%clk 0:09:38.8]} 43... Bd4 {[%clk 0:06:09.1]} 44. Bb5 {[%clk
0:09:38.2]} 44... Bc3 {[%clk 0:06:10.7]} 45. Bc4 {[%clk 0:09:39.9]} 45... Bd4
{[%clk 0:06:12.6]} 46. Bb5 {[%clk 0:09:41.6]} 46... Bc3 {[%clk 0:06:14.2]} 47.
Bc4 {[%clk 0:09:43.4]} 1/2-1/2

[Event "Venerd-dì-rapid!"]
[Site "Chess.com"]
[Date "2020.04.17"]
[Round "1"]
[White "karab89"]
[Black "giulioscaglione"]
[Result "1-0"]
[WhiteElo "1441"]
[BlackElo "1354"]
[TimeControl "720+3"]
[EndTime "6:20:34 PDT"]
[Termination "karab89 ha vinto per scaccomatto"]

1. e4 {[%clk 0:12:00.2]} 1... e6 {[%clk 0:12:01.1]} 2. d4 {[%clk 0:11:47.4]}
2... b6 {[%clk 0:12:02.3]} 3. Bc4 {[%clk 0:11:25.5]} 3... Bb7 {[%clk 0:12:02.9]}
4. Nc3 {[%clk 0:11:23.2]} 4... Bb4 {[%clk 0:12:02.9]} 5. d5 {[%clk 0:10:44.6]}
5... exd5 {[%clk 0:11:58.5]} 6. exd5 {[%clk 0:10:40.1]} 6... Nf6 {[%clk
0:11:36.8]} 7. Bg5 {[%clk 0:10:00.1]} 7... O-O {[%clk 0:11:32.2]} 8. Ne2 {[%clk
0:09:56.4]} 8... Bxc3+ {[%clk 0:11:15.3]} 9. bxc3 {[%clk 0:09:25.6]} 9... Qe7
{[%clk 0:10:22]} 10. O-O {[%clk 0:08:42]} 10... Qd6 {[%clk 0:09:38.6]} 11. Bf4
{[%clk 0:07:59.6]} 11... Qc5 {[%clk 0:09:22.8]} 12. Bb3 {[%clk 0:04:59.3]} 12...
Bxd5 {[%clk 0:09:17.2]} 13. Bxd5 {[%clk 0:04:56.3]} 13... Qxd5 {[%clk
0:09:01.9]} 14. Bxc7 {[%clk 0:04:50.1]} 14... Na6 {[%clk 0:07:32.2]} 15. Bd6
{[%clk 0:04:15.8]} 15... Rfe8 {[%clk 0:07:20.6]} 16. Re1 {[%clk 0:04:12]} 16...
Ne4 {[%clk 0:06:27.8]} 17. Qxd5 {[%clk 0:04:02.8]} 17... Nf6 {[%clk 0:06:09.6]}
18. Qb5 {[%clk 0:03:42.4]} 18... Nc5 {[%clk 0:05:57.2]} 19. Bxc5 {[%clk
0:03:36.9]} 19... bxc5 {[%clk 0:05:58.2]} 20. Qxc5 {[%clk 0:03:38.2]} 20... Rec8
{[%clk 0:05:57.5]} 21. Qe3 {[%clk 0:03:23.3]} 21... Re8 {[%clk 0:05:56.3]} 22.
Qd3 {[%clk 0:03:22]} 22... Rec8 {[%clk 0:05:43]} 23. Nd4 {[%clk 0:03:21.7]}
23... d5 {[%clk 0:05:30.7]} 24. Nf5 {[%clk 0:03:20.3]} 24... Kh8 {[%clk
0:05:13.4]} 25. Qg3 {[%clk 0:03:16.7]} 25... Nh5 {[%clk 0:05:05.7]} 26. Qd6
{[%clk 0:03:12.4]} 26... Rd8 {[%clk 0:04:48.8]} 27. Qe7 {[%clk 0:03:09.6]} 27...
h6 {[%clk 0:04:31.9]} 28. Qxf7 {[%clk 0:03:08.5]} 28... Rf8 {[%clk 0:04:24.4]}
29. Qxh5 {[%clk 0:03:08.3]} 29... Kh7 {[%clk 0:04:22.9]} 30. Re7 {[%clk
0:03:06.7]} 30... Rg8 {[%clk 0:04:09.7]} 31. Qxh6# {[%clk 0:03:04.9]} 1-0

[Event "Venerd-dì-rapid!"]
[Site "Chess.com"]
[Date "2020.04.17"]
[Round "1"]
[White "MarcoCiva"]
[Black "OMatteoWuO"]
[Result "1/2-1/2"]
[WhiteElo "1669"]
[BlackElo "1138"]
[TimeControl "720+3"]
[EndTime "6:28:01 PDT"]
[Termination "Patta d'accordo"]

1. d4 {[%clk 0:11:59.7]} 1... Nf6 {[%clk 0:09:01.2]} 2. c4 {[%clk 0:11:56.6]}
2... g6 {[%clk 0:08:58]} 3. Nc3 {[%clk 0:11:56.4]} 3... Bg7 {[%clk 0:08:59.5]}
4. Nf3 {[%clk 0:11:57.3]} 4... d6 {[%clk 0:08:54.3]} 5. e3 {[%clk 0:11:51.9]}
5... O-O {[%clk 0:08:55.2]} 6. Bd3 {[%clk 0:11:51.4]} 6... Nbd7 {[%clk
0:08:54.8]} 7. O-O {[%clk 0:11:52.6]} 7... e5 {[%clk 0:08:53.7]} 8. dxe5 {[%clk
0:11:34.2]} 8... dxe5 {[%clk 0:08:50.8]} 9. Ne4 {[%clk 0:11:21.6]} 9... Nxe4
{[%clk 0:08:47.5]} 10. Bxe4 {[%clk 0:11:22.9]} 10... Nc5 {[%clk 0:08:41.4]} 11.
Bd5 {[%clk 0:10:26]} 11... c6 {[%clk 0:08:27.9]} 12. b4 {[%clk 0:10:25.9]} 12...
Ne6 {[%clk 0:08:06.1]} 13. Bxe6 {[%clk 0:10:23.5]} 13... Bxe6 {[%clk 0:08:07.9]}
14. Bb2 {[%clk 0:10:11.8]} 14... Qc7 {[%clk 0:07:33.2]} 15. c5 {[%clk 0:09:56]}
15... Rfd8 {[%clk 0:07:14.2]} 16. Qe2 {[%clk 0:09:02.6]} 16... e4 {[%clk
0:06:10.7]} 17. Bxg7 {[%clk 0:09:00.9]} 17... exf3 {[%clk 0:06:08.6]} 18. Qb2
{[%clk 0:08:31.4]} 18... fxg2 {[%clk 0:05:44.3]} 19. Kxg2 {[%clk 0:08:31.4]}
19... Bd5+ {[%clk 0:05:38.7]} 20. f3 {[%clk 0:08:12.6]} 20... Re8 {[%clk
0:04:57.9]} 21. Bh8 {[%clk 0:08:09.5]} 21... f5 {[%clk 0:04:43.2]} 22. Bd4
{[%clk 0:07:52]} 22... Re6 {[%clk 0:03:54.1]} 23. Qc2 {[%clk 0:07:12.9]} 23...
Qe7 {[%clk 0:03:31.6]} 24. Rae1 {[%clk 0:07:03.5]} 24... Qg5+ {[%clk 0:03:22]}
25. Kf2 {[%clk 0:06:35]} 25... Rae8 {[%clk 0:02:57.3]} 26. Rg1 {[%clk
0:06:33.9]} 26... Qh4+ {[%clk 0:02:55.4]} 27. Ke2 {[%clk 0:06:29.4]} 27... Qxh2+
{[%clk 0:02:51.4]} 28. Kd1 {[%clk 0:06:24.9]} 28... Qxc2+ {[%clk 0:02:52.4]} 29.
Kxc2 {[%clk 0:06:25.1]} 29... Bxf3 {[%clk 0:02:49.3]} 30. Ref1 {[%clk 0:06:20]}
30... Be4+ {[%clk 0:02:49.5]} 31. Kd2 {[%clk 0:06:07]} 31... Bd5 {[%clk
0:02:49.3]} 32. Rxf5 {[%clk 0:06:05.4]} 32... Bxa2 {[%clk 0:02:46.5]} 33. Rf3
{[%clk 0:05:39.1]} 33... Bd5 {[%clk 0:02:19.4]} 34. Rfg3 {[%clk 0:05:11.5]}
34... Rf8 {[%clk 0:02:03.7]} 35. Ke2 {[%clk 0:04:58.9]} 35... Bc4+ {[%clk
0:01:51.2]} 36. Ke1 {[%clk 0:04:57.5]} 36... Rf5 {[%clk 0:01:28.3]} 37. R1g2
{[%clk 0:04:34.2]} 37... Kf7 {[%clk 0:00:49.7]} 38. Rf2 {[%clk 0:04:14.9]} 38...
Rxf2 {[%clk 0:00:49.9]} 39. Kxf2 {[%clk 0:04:16.8]} 39... h6 {[%clk 0:00:44.9]}
40. Rf3+ {[%clk 0:04:13.3]} 40... Ke7 {[%clk 0:00:43.5]} 41. Rf4 {[%clk
0:04:05.5]} 41... g5 {[%clk 0:00:43.4]} 42. Rg4 {[%clk 0:04:05.2]} 42... Kf7
{[%clk 0:00:38.6]} 43. e4 {[%clk 0:03:40.5]} 43... Kg6 {[%clk 0:00:32.4]} 44.
Ke3 {[%clk 0:03:39.1]} 44... h5 {[%clk 0:00:31.9]} 45. Rg1 {[%clk 0:03:34.2]}
45... Bd5 {[%clk 0:00:32.6]} 46. Ra1 {[%clk 0:03:25]} 46... Rxe4+ {[%clk
0:00:27.2]} 47. Kd3 {[%clk 0:03:22.7]} 47... a6 {[%clk 0:00:28.3]} 48. Rf1
{[%clk 0:03:13.6]} 48... h4 {[%clk 0:00:25.7]} 49. Rf6+ {[%clk 0:03:14.8]} 49...
Kh5 {[%clk 0:00:27.1]} 50. Rf8 {[%clk 0:03:02.7]} 50... Kg4 {[%clk 0:00:23]} 51.
Rh8 {[%clk 0:02:48.9]} 51... Kg3 {[%clk 0:00:20]} 52. Rh7 {[%clk 0:02:48.6]}
52... g4 {[%clk 0:00:20.5]} 53. Rxb7 {[%clk 0:02:49.7]} 53... h3 {[%clk
0:00:21.2]} 1/2-1/2

[Event "Venerd-dì-rapid!"]
[Site "Chess.com"]
[Date "2020.04.17"]
[Round "2"]
[White "markk000"]
[Black "Ollarov"]
[Result "0-1"]
[WhiteElo "1564"]
[BlackElo "1965"]
[TimeControl "720+3"]
[EndTime "6:36:11 PDT"]
[Termination "Ollarov ha vinto per abbandono"]

1. d4 {[%clk 0:11:57.6]} 1... Nf6 {[%clk 0:11:59.5]} 2. c4 {[%clk 0:11:55.5]}
2... g6 {[%clk 0:12:00.4]} 3. Nc3 {[%clk 0:11:38.8]} 3... Bg7 {[%clk 0:11:53.1]}
4. e4 {[%clk 0:11:34]} 4... O-O {[%clk 0:11:52.3]} 5. h3 {[%clk 0:11:20.9]} 5...
d6 {[%clk 0:11:50.7]} 6. Nf3 {[%clk 0:11:21.3]} 6... e5 {[%clk 0:11:24]} 7. d5
{[%clk 0:11:20.1]} 7... a5 {[%clk 0:11:15.7]} 8. Bd3 {[%clk 0:11:21.8]} 8... Na6
{[%clk 0:11:12.8]} 9. Be3 {[%clk 0:11:19.8]} 9... Nd7 {[%clk 0:10:51.7]} 10. O-O
{[%clk 0:11:19]} 10... f5 {[%clk 0:10:44.9]} 11. Qd2 {[%clk 0:10:41.1]} 11... f4
{[%clk 0:10:38.8]} 12. Bxf4 {[%clk 0:10:25.1]} 12... exf4 {[%clk 0:10:34.2]} 13.
a3 {[%clk 0:10:16.4]} 13... Ne5 {[%clk 0:10:28.8]} 14. Nxe5 {[%clk 0:10:08.9]}
14... Bxe5 {[%clk 0:10:27.1]} 15. Be2 {[%clk 0:09:48.5]} 15... Qg5 {[%clk
0:10:23.5]} 16. g4 {[%clk 0:09:37.8]} 16... Qh4 {[%clk 0:10:20.1]} 17. Kg2
{[%clk 0:09:21.6]} 17... Nc5 {[%clk 0:09:57.2]} 18. Kf3 {[%clk 0:08:36.3]} 0-1

[Event "Venerd-dì-rapid!"]
[Site "Chess.com"]
[Date "2020.04.17"]
[Round "2"]
[White "donaldnecesito"]
[Black "karab89"]
[Result "1-0"]
[WhiteElo "1718"]
[BlackElo "1367"]
[TimeControl "720+3"]
[EndTime "6:37:46 PDT"]
[Termination "donaldnecesito ha vinto per scaccomatto"]

1. e4 {[%clk 0:12:02.9]} 1... e6 {[%clk 0:11:48.7]} 2. d4 {[%clk 0:12:03.7]}
2... d5 {[%clk 0:11:46]} 3. Nd2 {[%clk 0:12:04.6]} 3... c5 {[%clk 0:11:45.2]} 4.
Ngf3 {[%clk 0:11:43.9]} 4... Qb6 {[%clk 0:11:45.9]} 5. c3 {[%clk 0:11:37.8]}
5... Nc6 {[%clk 0:11:46]} 6. Nb3 {[%clk 0:11:33.2]} 6... cxd4 {[%clk 0:11:39.2]}
7. exd5 {[%clk 0:11:35.1]} 7... exd5 {[%clk 0:11:21.3]} 8. Nfxd4 {[%clk
0:11:34.2]} 8... Nf6 {[%clk 0:11:18.9]} 9. Be3 {[%clk 0:11:31.8]} 9... Bc5
{[%clk 0:11:15.3]} 10. Bb5 {[%clk 0:11:07.8]} 10... Bd7 {[%clk 0:10:41.3]} 11.
Nxc5 {[%clk 0:11:05.7]} 11... Qxc5 {[%clk 0:10:38]} 12. O-O {[%clk 0:10:47]}
12... O-O {[%clk 0:10:04.5]} 13. Bxc6 {[%clk 0:10:46.4]} 13... Bxc6 {[%clk
0:09:55.6]} 14. Ne6 {[%clk 0:10:48.2]} 14... Qxe3 {[%clk 0:08:16.4]} 15. fxe3
{[%clk 0:10:41.1]} 15... fxe6 {[%clk 0:08:19.3]} 16. a4 {[%clk 0:10:24.5]} 16...
Ne4 {[%clk 0:08:14.6]} 17. Qg4 {[%clk 0:10:20.1]} 17... Rxf1+ {[%clk 0:07:47.6]}
18. Rxf1 {[%clk 0:10:19.3]} 18... Bd7 {[%clk 0:07:13.2]} 19. c4 {[%clk
0:10:12.5]} 19... Rd8 {[%clk 0:07:11.6]} 20. cxd5 {[%clk 0:10:12.2]} 20... exd5
{[%clk 0:07:13.3]} 21. Qh4 {[%clk 0:10:08.8]} 21... Bxa4 {[%clk 0:07:01.8]} 22.
Qxd8+ {[%clk 0:10:09.1]} 22... Be8 {[%clk 0:06:55.8]} 23. Qxe8# {[%clk
0:10:11.1]} 1-0

[Event "Venerd-dì-rapid!"]
[Site "Chess.com"]
[Date "2020.04.17"]
[Round "2"]
[White "sirmale49"]
[Black "FrancescoZasa"]
[Result "1-0"]
[WhiteElo "1359"]
[BlackElo "927"]
[TimeControl "720+3"]
[EndTime "6:44:31 PDT"]
[Termination "sirmale49 ha vinto per scaccomatto"]

1. e4 {[%clk 0:11:53.6]} 1... e5 {[%clk 0:11:58.8]} 2. f4 {[%clk 0:11:40.9]}
2... d5 {[%clk 0:11:50.7]} 3. Nc3 {[%clk 0:11:22.1]} 3... exf4 {[%clk
0:11:44.7]} 4. Nf3 {[%clk 0:11:19.4]} 4... g5 {[%clk 0:11:40.4]} 5. h4 {[%clk
0:11:18.3]} 5... h6 {[%clk 0:11:40.5]} 6. hxg5 {[%clk 0:11:16.8]} 6... hxg5
{[%clk 0:11:39.9]} 7. Rxh8 {[%clk 0:11:16.4]} 7... Qf6 {[%clk 0:11:12.8]} 8.
Rxg8 {[%clk 0:11:13]} 8... Qe7 {[%clk 0:11:05.2]} 9. d3 {[%clk 0:11:02.5]} 9...
dxe4 {[%clk 0:11:02.7]} 10. Nxe4 {[%clk 0:10:54.8]} 10... Nc6 {[%clk 0:10:46.2]}
11. Nxg5 {[%clk 0:10:39.2]} 11... Ne5 {[%clk 0:10:28.8]} 12. Bxf4 {[%clk
0:10:25.3]} 12... Bg4 {[%clk 0:10:24.2]} 13. Be2 {[%clk 0:09:33.5]} 13... f6
{[%clk 0:10:12.4]} 14. Rxf8+ {[%clk 0:09:25.6]} 14... Qxf8 {[%clk 0:10:08.1]}
15. Bxg4 {[%clk 0:09:21.3]} 15... Nxg4 {[%clk 0:10:06.6]} 16. Qxg4 {[%clk
0:09:22.2]} 16... fxg5 {[%clk 0:10:07.2]} 17. Qe6+ {[%clk 0:09:16.6]} 17... Qe7
{[%clk 0:10:05.1]} 18. Qxe7+ {[%clk 0:09:16.9]} 18... Kxe7 {[%clk 0:10:05.4]}
19. Bxg5+ {[%clk 0:09:18.3]} 19... Kf8 {[%clk 0:10:02.7]} 20. O-O-O {[%clk
0:09:19.6]} 20... Re8 {[%clk 0:10:01.1]} 21. Nc5 {[%clk 0:09:16.9]} 21... b6
{[%clk 0:10:00.5]} 22. Nd7+ {[%clk 0:09:16.2]} 22... Kg7 {[%clk 0:09:55.3]} 23.
Rf1 {[%clk 0:09:14.8]} 23... c5 {[%clk 0:09:39.6]} 24. Bh4 {[%clk 0:09:07.4]}
24... a5 {[%clk 0:09:24.2]} 25. g4 {[%clk 0:09:07.3]} 25... b5 {[%clk
0:09:15.6]} 26. g5 {[%clk 0:09:08.4]} 26... c4 {[%clk 0:09:08.7]} 27. dxc4
{[%clk 0:09:08.3]} 27... bxc4 {[%clk 0:09:09.7]} 28. Nb6 {[%clk 0:09:08]} 28...
a4 {[%clk 0:08:44.8]} 29. Nxa4 {[%clk 0:09:07.9]} 29... Re4 {[%clk 0:08:24.2]}
30. Bg3 {[%clk 0:08:54.2]} 30... Rg4 {[%clk 0:08:05.6]} 31. Be5+ {[%clk
0:08:47]} 31... Kg8 {[%clk 0:07:57.8]} 32. Bf6 {[%clk 0:08:43.3]} 32... Re4
{[%clk 0:07:51.2]} 33. Nc5 {[%clk 0:08:41.6]} 33... Re8 {[%clk 0:07:28.6]} 34.
Nd7 {[%clk 0:08:38.7]} 34... Re6 {[%clk 0:07:05.3]} 35. Ne5 {[%clk 0:08:35.8]}
35... Kf8 {[%clk 0:06:32.9]} 36. Rh1 {[%clk 0:08:32.1]} 36... Rxf6 {[%clk
0:06:13]} 37. gxf6 {[%clk 0:08:30]} 37... Kg8 {[%clk 0:06:03.9]} 38. Kd2 {[%clk
0:08:27.1]} 38... Kf8 {[%clk 0:05:45.3]} 39. Ke3 {[%clk 0:08:26.9]} 39... Kg8
{[%clk 0:05:44.9]} 40. Kf4 {[%clk 0:08:27.4]} 40... Kf8 {[%clk 0:05:40.5]} 41.
Kg5 {[%clk 0:08:28.6]} 41... Kg8 {[%clk 0:05:39.9]} 42. Nf7 {[%clk 0:08:27.7]}
42... Kxf7 {[%clk 0:05:35.4]} 43. Rh7+ {[%clk 0:08:26.1]} 43... Ke6 {[%clk
0:05:27]} 44. Re7+ {[%clk 0:08:19.9]} 44... Kd5 {[%clk 0:05:24.9]} 45. Kf5
{[%clk 0:08:20.8]} 45... Kd4 {[%clk 0:05:25]} 46. c3+ {[%clk 0:08:18]} 46... Kd3
{[%clk 0:05:23.9]} 47. Rd7+ {[%clk 0:08:18.8]} 47... Kc2 {[%clk 0:05:24]} 48.
Ke4 {[%clk 0:08:18.9]} 48... Kxb2 {[%clk 0:05:24.8]} 49. Kd4 {[%clk 0:08:18.4]}
49... Kxa2 {[%clk 0:05:25.8]} 50. Rb7 {[%clk 0:08:18.7]} 50... Ka3 {[%clk
0:05:20.7]} 51. Kxc4 {[%clk 0:08:18.1]} 51... Ka4 {[%clk 0:05:20.1]} 52. Ra7#
{[%clk 0:08:19.1]} 1-0